fUST/lending_fUST_20240209
["ID","MTS","AMOUNT","RATE_DAILY","PERIOD"]
[313603756,1707457839322,-500.0,0.0002493,2]
[313603757,1707457839333,-500.0,0.0002493,2]
[313603758,1707457839343,-500.0,0.0002493,2]
[313603759,1707457839354,-500.0,0.0002493,2]
[313603760,1707457839364,-500.0,0.0002493,2]
[313603761,1707457839375,-500.0,0.0002493,2]
[313603762,1707457839387,-242.91627554,0.0002493,2]
[313603763,1707457839398,-500.0,0.0002493,2]
[313603765,1707457839409,-500.0,0.0002493,2]
[313603766,1707457839419,-459.30045149,0.0002493,2]
[313603767,1707457839430,-500.0,0.0002493,2]
[313603768,1707457839441,-500.0,0.0002493,2]
[313603769,1707457839452,-500.0,0.0002493,2]
[313603770,1707457839462,-500.0,0.0002493,2]
[313603771,1707457839473,-500.0,0.0002493,2]
[313603772,1707457839483,-500.0,0.0002493,2]
[313603773,1707457839494,-500.0,0.0002493,2]
[313603774,1707457839504,-500.0,0.0002493,2]
[313603775,1707457839515,-500.0,0.0002493,2]
[313603776,1707457839526,-500.0,0.0002493,2]
[313603777,1707457839538,-500.0,0.0002493,2]
[313603778,1707457839548,-250.97544119,0.0002493,2]
[313603779,1707457839559,-705.87792346,0.0002493,2]
[313603780,1707457839570,-705.87792346,0.0002493,2]
[313603781,1707457839581,-705.87792346,0.0002493,2]
[313603782,1707457839591,-705.87792346,0.0002493,2]
[313603783,1707457839602,-705.87792346,0.0002493,2]
[313603784,1707457839615,-705.87792346,0.0002493,2]
[313603785,1707457839626,-705.87792346,0.0002493,2]
[313603786,1707457839636,-705.87792346,0.0002493,2]
[313603787,1707457839647,-705.87792346,0.0002493,2]
[313603788,1707457839656,-705.87792346,0.0002493,2]
[313603789,1707457839776,-705.87792346,0.0002493,2]
[313603790,1707457839787,-705.87792346,0.0002493,2]
[313603791,1707457839800,-705.87792346,0.0002493,2]
[313603792,1707457839809,-705.87792346,0.0002493,2]
[313603793,1707457839819,-705.87792346,0.0002493,2]
[313603794,1707457839828,-705.87792346,0.0002493,2]
[313603795,1707457839837,-705.87792346,0.0002493,2]
[313603796,1707457839846,-705.87792346,0.0002493,2]
[313603797,1707457839855,-705.87792346,0.0002493,2]
[313603798,1707457839864,-705.87792346,0.0002493,2]
[313603799,1707457839874,-705.87792346,0.0002493,2]
[313603800,1707457839884,-705.87792346,0.0002493,2]
[313603801,1707457839892,-705.87792346,0.0002493,2]
[313603802,1707457839901,-705.87792346,0.0002493,2]
[313603803,1707457839910,-705.87792346,0.0002493,2]
[313603804,1707457839919,-705.87792346,0.0002493,2]
[313603805,1707457839930,-705.87792346,0.0002493,2]
[313603806,1707457839939,-705.87792346,0.0002493,2]
[313603807,1707457839948,-705.87792346,0.0002493,2]
[313603808,1707457839957,-705.87792346,0.0002493,2]
[313603809,1707457839966,-705.87792346,0.0002493,2]
[313603810,1707457839975,-705.87792346,0.0002493,2]
[313603811,1707457839984,-705.87792346,0.0002493,2]
[313603812,1707457839993,-705.87792346,0.0002493,2]
[313603813,1707457840002,-705.87792346,0.0002493,2]
[313603814,1707457840011,-705.87792346,0.0002493,2]
[313603815,1707457840020,-705.87792346,0.0002493,2]
[313603816,1707457840029,-705.87792346,0.0002493,2]
[313603817,1707457840038,-705.87792346,0.0002493,2]
[313603819,1707457840048,-705.87792346,0.0002493,2]
[313603821,1707457840058,-705.87792346,0.0002493,2]
[313603822,1707457840066,-705.87792346,0.0002493,2]
[313603823,1707457840076,-705.87792346,0.0002493,2]
[313603824,1707457840085,-705.87792346,0.0002493,2]
[313603825,1707457840094,-705.87792346,0.0002493,2]
[313603826,1707457840103,-705.87792346,0.0002493,2]
[313603827,1707457840112,-705.87792346,0.0002493,2]
[313603828,1707457840121,-705.87792346,0.0002493,2]
[313603829,1707457840130,-705.87792346,0.0002493,2]
[313603830,1707457840138,-705.87792346,0.0002493,2]
[313603831,1707457840147,-705.87792346,0.0002493,2]
[313603832,1707457840156,-705.87792346,0.0002493,2]
[313603833,1707457840165,-705.87792346,0.0002493,2]
[313603834,1707457840174,-705.87792346,0.0002493,2]
[313603835,1707457840183,-705.87792346,0.0002493,2]
[313603836,1707457840192,-705.87792346,0.0002493,2]
[313603837,1707457840201,-331.64393185,0.0002493,2]
[313603838,1707457840215,-374.23399161,0.0002493,2]
[313603839,1707457840223,-333.25236717,0.0002493,2]
[313603840,1707457840233,-698.81914421,0.0002493,2]
[313603841,1707457840242,-698.81914421,0.0002493,2]
[313603842,1707457840251,-698.81914421,0.0002493,2]
[313603843,1707457840260,-698.81914421,0.0002493,2]
[313603844,1707457840269,-698.81914421,0.0002493,2]
[313603845,1707457840278,-698.81914421,0.0002493,2]
[313603846,1707457840287,-698.81914421,0.0002493,2]
[313603847,1707457840296,-698.81914421,0.0002493,2]
[313603848,1707457840305,-698.81914421,0.0002493,2]
[313603849,1707457840314,-698.81914421,0.0002493,2]
[313603850,1707457840323,-21.06178021,0.0002493,2]
[313603911,1707457847864,-500.0,0.00024657,2]
[313603912,1707457847875,-2171.51,0.00024921,3]
[313603913,1707457847884,-677.757364,0.0002493,2]
[313603914,1707457847893,-698.81914421,0.0002493,2]
[313603915,1707457847903,-698.81914421,0.0002493,2]
[313603916,1707457847912,-698.81914421,0.0002493,2]
[313603917,1707457847922,-698.81914421,0.0002493,2]
[313603918,1707457847931,-698.81914421,0.0002493,2]
[313603919,1707457847940,-698.81914421,0.0002493,2]
[313603920,1707457847950,-698.81914421,0.0002493,2]
[313603921,1707457847959,-698.81914421,0.0002493,2]
[313603922,1707457847969,-698.81914421,0.0002493,2]
[313603923,1707457847978,-151.0,0.0002493,2]
[313603924,1707457847988,-155.111809,0.0002493,2]
[313603925,1707457847997,-151.0,0.0002493,2]
[313603926,1707457848006,-151.0,0.0002493,2]
[313603927,1707457848015,-151.0,0.0002493,2]
[313603928,1707457848025,-151.0,0.0002493,2]
[313603929,1707457848034,-153.732083,0.0002493,2]
[313603930,1707457848043,-12018.74967803,0.00024931,2]
[313604015,1707459032127,-690.22217903,0.00020999,2]
[313604016,1707459032137,-194.92694667,0.00021,2]
[313604017,1707459032147,-587.97840597,0.00021,2]
[313604018,1707459032163,-2139.01114399,0.00022681,2]
[313604019,1707459032173,-5093.03850796,0.0002269,2]
[313604021,1707459032186,-6487.35972963,0.0002269,2]
[313604058,1707459039096,-11105.35481911,0.0002269,2]
[313604060,1707459039106,-181.0199692,0.00022781,2]
[313604062,1707459039116,-344.49732899,0.0002283,2]
[313604063,1707459039125,-250.0,0.00022998,2]
[313604064,1707459039134,-1096.94,0.00024647,3]
[313604065,1707459039145,-1895.34,0.00024647,3]
[313604066,1707459039154,-1579.45,0.00024647,3]
[313604067,1707459039164,-1316.21,0.00024647,3]
[313604068,1707459039173,-155.82869241,0.00024657,2]
[313604069,1707459039183,-178.39466467,0.00024657,2]
[313604070,1707459039193,-155.26515466,0.00024657,2]
[313604071,1707459039202,-867.93,0.00024657,2]
[313604072,1707459039212,-500.0,0.00024657,2]
[313604073,1707459039223,-500.0,0.00024657,2]
[313604074,1707459039233,-500.0,0.00024657,2]
[313604075,1707459039243,-500.0,0.00024657,2]
[313604076,1707459039252,-500.0,0.00024657,2]
[313604077,1707459039262,-500.0,0.00024657,2]
[313604078,1707459039271,-126.91542021,0.00024657,2]
[313604150,1707459046250,-373.08457979,0.00024657,2]
[313604151,1707459046259,-452.01348601,0.00024657,2]
[313604152,1707459046271,-47.98651399,0.00024657,2]
[313604153,1707459046281,-500.0,0.00024657,2]
[313604154,1707459046290,-500.0,0.00024657,2]
[313604155,1707459046300,-500.0,0.00024657,2]
[313604156,1707459046310,-500.0,0.00024657,2]
[313604157,1707459046318,-500.0,0.00024657,2]
[313604158,1707459046327,-500.0,0.00024657,2]
[313604159,1707459046336,-528.0022967,0.00024657,2]
[313604160,1707459046346,-500.0,0.00024657,2]
[313604161,1707459046355,-895.25,0.00024657,2]
[313604162,1707459046365,-500.0,0.00024657,2]
[313604163,1707459046374,-964.84,0.00024657,2]
[313604164,1707459046384,-571.52118908,0.00024657,2]
[313604217,1707460241649,-690.22217903,0.00022556,2]
[313604218,1707460241659,-405.27747634,0.00022557,2]
[313604219,1707460241669,-230.65407003,0.00023487,2]
[313604288,1707460246412,-333.37189497,0.00023487,2]
[313604289,1707460246422,-2395.23003923,0.000244,2]
[313604290,1707460255201,152.01850195,2.5e-05,14]
[313604291,1707460326913,1915.11187309,0.00029,30]
[313604316,1707461043371,-690.22217903,0.00022287,2]
[313604317,1707461043393,-2583.60753553,0.00022288,2]
[313604318,1707461043417,-2999.97990645,0.0002229,2]
[313604319,1707461043473,-37331.36379083,0.0002229,2]
[313604320,1707461043515,-254.83671761,0.0002229,2]
[313604321,1707461043573,-518.14106198,0.0002229,2]
[313604322,1707461043623,-1719.04,0.0002439,3]
[313604323,1707461043674,-380.0,0.0002229,2]
[313604324,1707461043744,-3364.47562232,0.0002229,2]
[313604325,1707461043833,-1894.18149145,0.0002229,2]
[313604326,1707461043868,-3257.02140936,0.0002229,2]
[313604327,1707461043891,-620.64762799,0.0002343,2]
[313604328,1707461043914,-1432.54,0.0002439,3]
[313604329,1707461043936,-277.17265983,0.00024398,2]
[313604330,1707461043960,-240.96840215,0.00024398,2]
[313604331,1707461043985,-47604.76996077,0.000244,2]
[313604332,1707461044099,-254.83671761,0.00024418,2]
[313604333,1707461044123,-200.0,0.00024518,7]
[313604334,1707461044144,-4495.12556647,0.00024655,2]
[313604335,1707461044166,-357.85042828,0.00024655,2]
[313604336,1707461044187,-587.32300757,0.00024655,2]
[313604337,1707461044210,-875.23720896,0.00024656,2]
[313604338,1707461044231,-2333.78312662,0.00024656,2]
[313604339,1707461044252,-155.45528674,0.00024656,2]
[313604340,1707461044273,-507.36286595,0.00024657,5]
[313604341,1707461044295,-500.0,0.00024657,2]
[313604342,1707461044318,-500.0,0.00024657,2]
[313604343,1707461044338,-500.0,0.00024657,2]
[313604344,1707461044359,-500.0,0.00024657,2]
[313604345,1707461044381,-857.95,0.00024657,2]
[313604346,1707461044402,-500.0,0.00024657,2]
[313604347,1707461044423,-500.0,0.00024657,2]
[313604348,1707461044443,-924.64,0.00024657,2]
[313604349,1707461044467,-500.0,0.00024657,2]
[313604350,1707461044487,-500.0,0.00024657,2]
[313604351,1707461044509,-1000.0,0.00024657,2]
[313604352,1707461044531,-528.90103496,0.00024657,2]
[313604353,1707461044553,-588.8760225,0.00024657,2]
[313604354,1707461044573,-500.0,0.00024657,2]
[313604355,1707461044595,-244.311395,0.00024657,2]
[313604356,1707461044617,-154.023822,0.00024657,2]
[313604357,1707461044638,-500.0,0.00024657,2]
[313604358,1707461044659,-500.0,0.00024657,2]
[313604359,1707461044681,-500.0,0.00024657,2]
[313604360,1707461044702,-500.0,0.00024657,2]
[313604361,1707461044722,-154.561332,0.00024657,2]
[313604362,1707461044743,-500.0,0.00024657,2]
[313604363,1707461044767,-486.40156789,0.00024657,2]
[313604364,1707461044787,-505.23460937,0.00024657,2]
[313604365,1707461044809,-7071.57,0.00024657,2]
[313604366,1707461044831,-500.0,0.00024657,2]
[313604367,1707461044852,-3231.03,0.00024657,2]
[313604368,1707461044875,-13916.99,0.00024657,2]
[313604369,1707461044897,-6014.16,0.00024657,2]
[313604370,1707461044921,-500.0,0.00024657,2]
[313604371,1707461044942,-500.0,0.00024657,2]
[313604372,1707461044963,-230.8015579,0.00024657,2]
[313604373,1707461044984,-251.499476,0.00024657,2]
[313604374,1707461045004,-251.499476,0.00024657,2]
[313604375,1707461045030,-251.499476,0.00024657,2]
[313604376,1707461045054,-251.499476,0.00024657,2]
[313604377,1707461045075,-251.499476,0.00024657,2]
[313604378,1707461045096,-251.499476,0.00024657,2]
[313604379,1707461045119,-251.499476,0.00024657,2]
[313604380,1707461045138,-251.499476,0.00024657,2]
[313604381,1707461045160,-500.0,0.00024657,2]
[313604382,1707461045182,-500.0,0.00024657,2]
[313604383,1707461045205,-1335.08,0.00024657,2]
[313604384,1707461045226,-864.06,0.00024657,2]
[313604385,1707461045248,-874.23,0.00024657,2]
[313604386,1707461045271,-5077.38,0.00024657,2]
[313604387,1707461045292,-831.76,0.00024657,2]
[313604388,1707461045314,-2009.87,0.00024657,2]
[313604389,1707461045335,-165.61925651,0.00024657,2]
[313604390,1707461045357,-500.0,0.00024657,2]
[313604391,1707461045379,-500.0,0.00024657,2]
[313604392,1707461045400,-74.08653029,0.00024657,2]
[313604393,1707461045463,-792.7328662,0.00025,7]
[313604394,1707461045495,-425.91346971,0.00024657,2]
[313604395,1707461045517,-500.0,0.00024657,2]
[313604396,1707461045540,-151.0,0.00024657,2]
[313604397,1707461045563,-151.0,0.00024657,2]
[313604398,1707461045586,-151.0,0.00024657,2]
[313604399,1707461045608,-151.0,0.00024657,2]
[313604400,1707461045637,-151.0,0.00024657,2]
[313604401,1707461045660,-2014.60190287,0.00024657,2]
[313604402,1707461045692,-1510.31809713,0.00024657,2]
[313604403,1707461045715,-1067.2,0.00024657,2]
[313604404,1707461045741,-4236.9,0.00024657,2]
[313604405,1707461045763,-500.0,0.00024657,2]
[313604406,1707461045784,-151.0,0.00024657,2]
[313604407,1707461045805,-171.789472,0.00024657,2]
[313604408,1707461045827,-1030.23,0.00024657,2]
[313604409,1707461045848,-531.84942507,0.00024657,2]
[313604410,1707461045869,-500.0,0.00024657,2]
[313604411,1707461045891,-1015.89575932,0.00024657,2]
[313604412,1707461045923,-875.0656207,0.00024657,2]
[313604414,1707461118933,-1894.18149145,0.00024557,2]
[313604415,1707461118956,-676.97415251,0.00024656,2]
[313604416,1707461118979,-18250.91432747,0.00024656,2]
[313604417,1707461119003,-2845.04861998,0.00024657,2]
[313604418,1707461119025,-500.0,0.00024657,2]
[313604419,1707461119048,-500.0,0.00024657,2]
[313604420,1707461119072,-500.0,0.00024657,2]
[313604421,1707461119093,-500.0,0.00024657,2]
[313604422,1707461119115,-505.11,0.00024657,2]
[313604423,1707461119138,-500.0,0.00024657,2]
[313604424,1707461119160,-500.0,0.00024657,2]
[313604425,1707461119182,-500.0,0.00024657,2]
[313604426,1707461119203,-1200.74,0.00024657,2]
[313604427,1707461119224,-500.0,0.00024657,2]
[313604428,1707461119246,-450.0872181,0.00024657,2]
[313604429,1707461119268,-1249.05571051,0.00024657,2]
[313604432,1707461133155,12167.27621831,0.00024656,2]
[313604502,1707461432604,-8426.28199566,0.00024556,2]
[313604575,1707461442918,-1713.11485293,0.00024556,2]
[313604576,1707461442928,-914.86,0.00024647,3]
[313604577,1707461442938,-762.38,0.00024647,3]
[313604578,1707461442947,-914.24,0.00024647,3]
[313604579,1707461442957,-155.12409928,0.00024656,2]
[313604580,1707461442966,-300.0,0.00024656,2]
[313604588,1707461443070,-1832.17488523,0.00024656,2]
[313604591,1707461443080,-4102.47240624,0.00024656,2]
[313604593,1707461443089,-151.0,0.00024657,2]
[313604594,1707461443098,-151.0,0.00024657,2]
[313604597,1707461443107,-184.01529,0.00024657,2]
[313604599,1707461443116,-620.69089419,0.00024657,2]
[313604601,1707461443125,-1000.0,0.00024657,2]
[313604603,1707461443135,-500.0,0.00024657,2]
[313604605,1707461443143,-500.0,0.00024657,2]
[313604607,1707461443153,-538.93969599,0.00024657,2]
[313604609,1707461443162,-500.0,0.00024657,2]
[313604611,1707461443171,-532.41421159,0.00024657,2]
[313604613,1707461443180,-1420.72,0.00024657,2]
[313604615,1707461443189,-203.4850144,0.00024657,2]
[313604616,1707461443197,-500.0,0.00024657,2]
[313604617,1707461443206,-512.37488173,0.00024657,2]
[313604618,1707461443215,-500.0,0.00024657,2]
[313604619,1707461443224,-4307.67,0.00024657,2]
[313604621,1707461443234,-4865.82,0.00024657,2]
[313604622,1707461443242,-3378.05,0.00024657,2]
[313604623,1707461443251,-4060.37,0.00024657,2]
[313604624,1707461443262,-1634.54,0.00024657,2]
[313604625,1707461443271,-500.0,0.00024657,2]
[313604626,1707461443280,-500.0,0.00024657,2]
[313604628,1707461443289,-500.0,0.00024657,2]
[313604629,1707461443299,-7463.3,0.00024657,2]
[313604630,1707461443307,-987.31,0.00024657,2]
[313604631,1707461443317,-3096.4,0.00024657,2]
[313604632,1707461443326,-6776.92,0.00024657,2]
[313604633,1707461443335,-1279.45,0.00024657,2]
[313604634,1707461443344,-828.06,0.00024657,2]
[313604635,1707461443354,-500.0,0.00024657,2]
[313604636,1707461443363,-610.5,0.00024657,2]
[313604637,1707461443373,-5763.57,0.00024657,2]
[313604638,1707461443383,-1926.12,0.00024657,2]
[313604639,1707461443393,-1149.36,0.00024657,2]
[313604641,1707461443402,-500.0,0.00024657,2]
[313604642,1707461443411,-500.0,0.00024657,2]
[313604643,1707461443420,-1022.73,0.00024657,2]
[313604644,1707461443431,-500.0,0.00024657,2]
[313604645,1707461443441,-500.0,0.00024657,2]
[313604646,1707461443450,-571.91814808,0.00024657,2]
[313604647,1707461443459,-837.8,0.00024657,2]
[313604649,1707461443468,-13337.11,0.00024657,2]
[313604650,1707461443477,-500.0,0.00024657,2]
[313604651,1707461443487,-500.0,0.00024657,2]
[313604652,1707461443496,-4538.68,0.00024657,2]
[313604653,1707461443505,-500.0,0.00024657,2]
[313604654,1707461443514,-380.0,0.00024658,2]
[313604655,1707461443525,-153.7073365,0.000247,2]
[313604656,1707461443535,-6273.80962101,0.00024886,2]
[313604657,1707461443545,-822.2,0.0002492,2]
[313604658,1707461443555,-500.0,0.0002492,2]
[313604659,1707461443565,-301.78100875,0.00024929,2]
[313604661,1707461443574,-573.28461195,0.00024929,2]
[313604662,1707461443583,-151.0,0.0002493,2]
[313604663,1707461443592,-29001.25032197,0.00024931,2]
[313604664,1707461443601,-924.64,0.00024931,2]
[313604665,1707461443610,-500.0,0.00024931,2]
[313604666,1707461443619,-500.0,0.00024931,2]
[313604667,1707461443629,-500.0,0.00024931,2]
[313604668,1707461443638,-500.0,0.00024931,2]
[313604669,1707461443647,-503.90611667,0.00024931,2]
[313604670,1707461443656,-500.0,0.00024931,2]
[313604671,1707461443666,-831.76,0.00024931,2]
[313604672,1707461443676,-500.0,0.00024931,2]
[313604673,1707461443685,-500.0,0.00024931,2]
[313604674,1707461443695,-151.0,0.00024931,2]
[313604675,1707461443705,-162.597852,0.00024931,2]
[313604676,1707461443714,-500.0,0.00024931,2]
[313604677,1707461443722,-500.0,0.00024931,2]
[313604678,1707461443733,-500.0,0.00024931,2]
[313604679,1707461443742,-500.0,0.00024931,2]
[313604680,1707461443751,-1200.74,0.00024931,2]
[313604681,1707461443761,-1000.0,0.00024931,2]
[313604682,1707461443771,-500.0,0.00024931,2]
[313604683,1707461443780,-500.0,0.00024931,2]
[313604684,1707461443790,-1420.72,0.00024931,2]
[313604685,1707461443800,-500.0,0.00024931,2]
[313604686,1707461443809,-500.0,0.00024931,2]
[313604687,1707461443820,-4307.67,0.00024931,2]
[313604688,1707461443829,-151.0,0.00024931,2]
[313604689,1707461443838,-4865.82,0.00024931,2]
[313604690,1707461443849,-151.0,0.00024931,2]
[313604691,1707461443861,-151.0,0.00024931,2]
[313604692,1707461443870,-151.0,0.00024931,2]
[313604693,1707461443879,-151.0,0.00024931,2]
[313604694,1707461443889,-151.0,0.00024931,2]
[313604695,1707461443900,-3378.05,0.00024931,2]
[313604696,1707461443909,-4060.37,0.00024931,2]
[313604697,1707461443919,-1634.54,0.00024931,2]
[313604698,1707461443929,-187.87708508,0.00024931,2]
[313604699,1707461443938,-500.0,0.00024931,2]
[313604700,1707461443949,-500.0,0.00024931,2]
[313604701,1707461443958,-7463.3,0.00024931,2]
[313604702,1707461443968,-987.31,0.00024931,2]
[313604703,1707461443977,-3096.4,0.00024931,2]
[313604704,1707461443986,-6776.92,0.00024931,2]
[313604705,1707461443995,-1279.45,0.00024931,2]
[313604706,1707461444004,-828.06,0.00024931,2]
[313604707,1707461444013,-500.0,0.00024931,2]
[313604708,1707461444023,-610.5,0.00024931,2]
[313604709,1707461444032,-5763.57,0.00024931,2]
[313604710,1707461444042,-1926.12,0.00024931,2]
[313604711,1707461444051,-1149.36,0.00024931,2]
[313604712,1707461444061,-500.0,0.00024931,2]
[313604713,1707461444071,-500.0,0.00024931,2]
[313604714,1707461444080,-1022.73,0.00024931,2]
[313604715,1707461444089,-500.0,0.00024931,2]
[313604716,1707461444098,-481.44931631,0.00024931,2]
[313604717,1707461444107,-837.8,0.00024931,2]
[313604718,1707461444116,-13337.11,0.00024931,2]
[313604719,1707461444125,-500.0,0.00024931,2]
[313604720,1707461444134,-3394.54606885,0.00024931,2]
[313604746,1707461446566,-473.44901888,0.00024647,3]
[313604868,1707462632656,-5253.30965585,0.00022066,2]
[313604869,1707462632714,-2196.36922601,0.00022066,2]
[313605003,1707462811677,-4181.39477595,0.00019963,2]
[313605004,1707462811699,-718.30431836,0.00019964,2]
[313605005,1707462811724,-155.13030946,0.00019965,2]
[313605006,1707462811748,-1500.0,0.00019965,3]
[313605007,1707462811771,-631.90450449,0.00019966,2]
[313605008,1707462811793,-7984.69564419,0.00020984,2]
[313605009,1707462811815,-5282.62575812,0.00020984,2]
[313605010,1707462811838,-24900.0,0.00020986,2]
[313605011,1707462811863,-1450.23270434,0.00021259,2]
[313605012,1707462811885,-269.108808,0.00021364,2]
[313605013,1707462811907,-2926.60317709,0.00021591,2]
[313605061,1707463634590,685.2166835,0.00019366,2]
[313605064,1707463678575,155.13807288,0.00019366,2]
[313605065,1707463694390,93.62674167,0.00019366,2]
[313605106,1707463831993,-295.85372931,0.00019358,2]
[313605107,1707463832004,-226.64095761,0.00019359,2]
[313605108,1707463832022,-103.99494402,0.00019359,2]
[313605109,1707463832033,-718.30431836,0.0001936,2]
[313605110,1707463832045,-2857.14290852,0.00019362,2]
[313605124,1707463837920,-1434.35354675,0.00019357,2]
[313605125,1707463837930,-2420.03528836,0.00019362,2]
[313605233,1707464579583,330.0,0.000175,2]
[313605239,1707464667633,155.13807288,0.000175,2]
[313605240,1707464685626,155.50497001,0.000175,2]
[313605287,1707465032105,-1794.34716921,0.00018341,2]
[313605353,1707465044770,-990.66859771,0.00018341,2]
[313605360,1707465044830,-2497.6099912,0.00018341,2]
[313605362,1707465044839,-4181.39477595,0.00018341,2]
[313605364,1707465044848,-364.57972517,0.00018342,2]
[313605367,1707465044860,-518.61,0.00018342,2]
[313605368,1707465044873,-793.90553543,0.00018342,2]
[313605370,1707465044882,-269.108808,0.00018354,2]
[313605372,1707465044891,-250.0,0.00018432,2]
[313605374,1707465044901,-197.24565657,0.000189,2]
[313605375,1707465044912,-284.31059981,0.000189,2]
[313605376,1707465044922,-168.972924,0.00019178,2]
[313605377,1707465044931,-143.03544863,0.00019365,2]
[313605378,1707465044943,-492.52760941,0.00019365,2]
[313605379,1707465044953,-61.96743834,0.00019366,2]
[313605380,1707465044962,-372.11,0.0001999,3]
[313605381,1707465044972,-409.09470754,0.0001999,3]
[313605450,1707465971817,-718.30431836,0.0001834,2]
[313605451,1707465971841,-5282.62575812,0.0001834,2]
[313605452,1707465971863,-5265.28038896,0.00018341,2]
[313605460,1707466232278,-272.234642,0.00018797,2]
[313605461,1707466232289,-432.79786564,0.000189,2]
[313605462,1707466232300,-583.27580428,0.00019989,2]
[313605492,1707466238328,-4699.34995384,0.00019989,2]
[313605493,1707466238338,-151.0,0.0001999,2]
[313605494,1707466238347,-1203.75,0.0001999,3]
[313605495,1707466238357,-2058.87879005,0.0001999,3]
[313605515,1707466241558,-236.59120995,0.0001999,3]
[313605516,1707466241568,-1912.89,0.0001999,3]
[313605517,1707466241577,-1594.08,0.0001999,3]
[313605518,1707466241588,-2623.82432635,0.00019998,2]
[313605519,1707466241597,-862.77003859,0.00019998,2]
[313605520,1707466241606,-10913.38224841,0.00019999,2]
[313605521,1707466241615,-158.263446,0.00019999,2]
[313605523,1707466241624,-113.01671044,0.00019999,2]
[313605524,1707466241636,-45.24673556,0.00019999,2]
[313605525,1707466241647,-424.21125522,0.0002,2]
[313605554,1707466243340,-3051.29035466,0.0002,2]
[313605556,1707466243352,-518.325847,0.0002,2]
[313605565,1707466246356,-451.25,0.0002,2]
[313605566,1707466246368,-1244.4141873,0.0002,2]
[313605567,1707466246385,-612.72457693,0.0002,2]
[313605568,1707466246395,-7450.95208957,0.0002,2]
[313605571,1707466265128,6733.78953456,0.00018341,2]
[313605576,1707466520384,7419.4468281,0.0001736,2]
[313605577,1707466545556,10324.50896271,0.0001736,2]
[313605578,1707466553563,1653.06040995,0.0001736,2]
[313605579,1707466559566,9749.93025611,0.0001736,2]
[313605580,1707466571459,1319.4991492,0.0001736,2]
[313605584,1707466596068,-481.65416914,0.00017861,2]
[313605585,1707466596094,-454.47444014,0.00017861,2]
[313605586,1707466596116,-330.63590163,0.00017862,2]
[313605587,1707466596138,-1688.5367588,0.00017863,2]
[313605588,1707466596161,-3744.69873029,0.00017863,2]
[313605685,1707467432426,-1541.3270971,0.00017858,2]
[313605739,1707467438509,-3741.29866102,0.00017858,2]
[313605742,1707467438518,-1670.71652866,0.00017858,2]
[313605744,1707467438527,-2045.48652279,0.00017859,2]
[313605746,1707467438541,-34.17436275,0.00017863,2]
[313605748,1707467438554,-11692.96744997,0.00017863,2]
[313605750,1707467438565,-20409.64532486,0.00017863,2]
[313605752,1707467438574,-1363.66604444,0.00017863,5]
[313605754,1707467438585,-1476.12971695,0.00018239,2]
[313605756,1707467438593,-466.80822734,0.00018339,2]
[313605758,1707467438603,-1088.38726467,0.0001834,2]
[313605760,1707467438613,-351.81528812,0.0001834,2]
[313605762,1707467438623,-6107.7416805,0.00018481,2]
[313605764,1707467438632,-436.63781596,0.000189,2]
[313605766,1707467438641,-170.124175,0.00019178,2]
[313605767,1707467438650,-200.0,0.00019648,2]
[313605769,1707467438659,-153.0,0.000199,2]
[313605770,1707467438668,-153.8551273,0.000199,2]
[313605772,1707467438677,-310.0806254,0.00019998,2]
[313605773,1707467438686,-202.2706883,0.00019998,2]
[313605775,1707467438695,-714.17367937,0.00019998,2]
[313605776,1707467438704,-500.0,0.00019998,2]
[313605778,1707467438713,-227.16794943,0.00019998,2]
[313605780,1707467438722,-189.68444313,0.00019998,2]
[313605781,1707467438732,-500.0,0.00019998,3]